fUSD/lending_fUSD_20240317
["ID","MTS","AMOUNT","RATE_DAILY","PERIOD"]
[319289830,1710640242755,-500.0,0.00015342,2]
[319289831,1710640242764,-500.0,0.00015342,2]
[319289832,1710640242773,-554.6,0.00015342,2]
[319289833,1710640242782,-500.0,0.00015342,2]
[319289834,1710640242791,-500.0,0.00015342,2]
[319289835,1710640242801,-500.0,0.00015342,2]
[319289836,1710640242810,-500.0,0.00015342,2]
[319289837,1710640242819,-1022.16,0.00015342,2]
[319289838,1710640242831,-500.0,0.00015342,2]
[319289839,1710640242839,-1022.16,0.00015342,2]
[319289840,1710640242848,-500.0,0.00015342,2]
[319289841,1710640242858,-1022.16,0.00015342,2]
[319289842,1710640242866,-500.0,0.00015342,2]
[319289843,1710640242877,-1022.16,0.00015342,2]
[319289844,1710640242886,-1022.16,0.00015342,2]
[319289845,1710640242895,-1022.16,0.00015342,2]
[319289846,1710640242905,-500.0,0.00015342,2]
[319289847,1710640242916,-500.0,0.00015342,2]
[319289848,1710640242925,-500.0,0.00015342,2]
[319289849,1710640242934,-500.0,0.00015342,2]
[319289850,1710640242943,-500.0,0.00015342,2]
[319289851,1710640242953,-520.56019235,0.00015342,2]
[319289852,1710640242962,-500.0,0.00015342,2]
[319289853,1710640242971,-500.0,0.00015342,2]
[319289854,1710640242980,-219.5935,0.00015342,2]
[319289855,1710640242989,-524.02,0.00015342,2]
[319289856,1710640242999,-524.02,0.00015342,2]
[319289857,1710640243009,-524.02,0.00015342,2]
[319289858,1710640243018,-524.02,0.00015342,2]
[319289859,1710640243026,-524.02,0.00015342,2]
[319289860,1710640243035,-530.05473292,0.00015342,2]
[319289861,1710640243044,-524.02,0.00015342,2]
[319289862,1710640243053,-1657.76,0.00015342,2]
[319289863,1710640243062,-1657.76,0.00015342,2]
[319289864,1710640243071,-1657.76,0.00015342,2]
[319289865,1710640243080,-1657.76,0.00015342,2]
[319289866,1710640243090,-1657.76,0.00015342,2]
[319289867,1710640243099,-1657.76,0.00015342,2]
[319289868,1710640243108,-500.0,0.00015342,2]
[319289869,1710640243118,-1657.76,0.00015342,2]
[319289870,1710640243126,-500.0,0.00015342,2]
[319289871,1710640243135,-500.0,0.00015342,2]
[319289872,1710640243144,-500.0,0.00015342,2]
[319289873,1710640243153,-500.0,0.00015342,2]
[319289874,1710640243162,-500.0,0.00015342,2]
[319289875,1710640243171,-500.0,0.00015342,2]
[319289876,1710640243180,-500.0,0.00015342,2]
[319289877,1710640243190,-500.0,0.00015342,2]
[319289878,1710640243199,-500.0,0.00015342,2]
[319289879,1710640243208,-500.0,0.00015342,2]
[319289880,1710640243217,-500.0,0.00015342,2]
[319289881,1710640243226,-517.30671627,0.00015342,2]
[319289882,1710640243234,-500.0,0.00015342,2]
[319289883,1710640243244,-500.0,0.00015342,2]
[319289884,1710640243253,-500.0,0.00015342,2]
[319289886,1710640243262,-567.49692887,0.00015342,2]
[319289888,1710640243271,-647.43144269,0.00015342,2]
[319289890,1710640243281,-1357.51,0.00015342,2]
[319289892,1710640243290,-1357.51,0.00015342,2]
[319289894,1710640243298,-1357.51,0.00015342,2]
[319289896,1710640243307,-1357.51,0.00015342,2]
[319289898,1710640243316,-1357.51,0.00015342,2]
[319289899,1710640243325,-1357.51,0.00015342,2]
[319289901,1710640243334,-1357.51,0.00015342,2]
[319289903,1710640243343,-531.14132543,0.00015342,2]
[319289905,1710640243352,-500.0,0.00015342,2]
[319289907,1710640243360,-500.0,0.00015342,2]
[319289909,1710640243370,-500.0,0.00015342,2]
[319289911,1710640243379,-500.0,0.00015342,2]
[319289913,1710640243387,-500.0,0.00015342,2]
[319289915,1710640243396,-628.57725019,0.00015342,2]
[319289917,1710640243405,-500.0,0.00015342,2]
[319289919,1710640243416,-500.0,0.00015342,2]
[319289921,1710640243425,-500.0,0.00015342,2]
[319289923,1710640243434,-500.0,0.00015342,2]
[319289925,1710640243444,-500.0,0.00015342,2]
[319289927,1710640243452,-500.0,0.00015342,2]
[319289929,1710640243461,-500.0,0.00015342,2]
[319289930,1710640243470,-500.0,0.00015342,2]
[319289931,1710640243479,-500.0,0.00015342,2]
[319289932,1710640243488,-500.0,0.00015342,2]
[319289933,1710640243497,-500.0,0.00015342,2]
[319289934,1710640243506,-500.0,0.00015342,2]
[319289935,1710640243516,-500.0,0.00015342,2]
[319289936,1710640243525,-500.0,0.00015342,2]
[319289937,1710640243534,-500.0,0.00015342,2]
[319289938,1710640243543,-500.0,0.00015342,2]
[319289939,1710640243552,-500.0,0.00015342,2]
[319289940,1710640243561,-500.0,0.00015342,2]
[319289941,1710640243570,-500.0,0.00015342,2]
[319289942,1710640243579,-500.0,0.00015342,2]
[319289943,1710640243588,-500.0,0.00015342,2]
[319289944,1710640243597,-268.11632117,0.00015342,2]
[319289945,1710640243606,-541.21178229,0.00015342,2]
[319289946,1710640243615,-500.0,0.00015342,2]
[319289947,1710640243624,-500.0,0.00015342,2]
[319289948,1710640243634,-500.0,0.00015342,2]
[319289949,1710640243643,-500.0,0.00015342,2]
[319289950,1710640243652,-544.64684939,0.00015342,2]
[319289951,1710640243663,-500.0,0.00015342,2]
[319289952,1710640243672,-500.0,0.00015342,2]
[319289953,1710640243681,-500.0,0.00015342,2]
[319289954,1710640243690,-500.0,0.00015342,2]
[319289955,1710640243699,-500.0,0.00015342,2]
[319289956,1710640243709,-500.0,0.00015342,2]
[319289957,1710640243718,-500.0,0.00015342,2]
[319289958,1710640243727,-500.0,0.00015342,2]
[319289959,1710640243736,-556.23205267,0.00015342,2]
[319289960,1710640243745,-591.67,0.00015342,2]
[319289961,1710640243755,-500.0,0.00015342,2]
[319289962,1710640243765,-591.67,0.00015342,2]
[319289963,1710640243774,-500.0,0.00015342,2]
[319289964,1710640243783,-591.67,0.00015342,2]
[319289965,1710640243792,-500.0,0.00015342,2]
[319289966,1710640243802,-591.67,0.00015342,2]
[319289967,1710640243811,-500.0,0.00015342,2]
[319289968,1710640243821,-591.67,0.00015342,2]
[319289969,1710640243833,-500.0,0.00015342,2]
[319289970,1710640243842,-510.15191024,0.00015342,2]
[319289971,1710640243851,-591.67,0.00015342,2]
[319289972,1710640243860,-500.0,0.00015342,2]
[319289973,1710640243870,-175.47801225,0.00015342,2]
[319289974,1710640243879,-500.0,0.00015342,2]
[319289975,1710640243888,-500.0,0.00015342,2]
[319289976,1710640243897,-500.0,0.00015342,2]
[319289977,1710640243907,-500.0,0.00015342,2]
[319289978,1710640243918,-640.03545739,0.00015342,2]
[319289979,1710640243927,-500.0,0.00015342,2]
[319289980,1710640243937,-505.66187291,0.00015342,2]
[319289981,1710640243946,-508.56712307,0.00015342,2]
[319289982,1710640243955,-500.0,0.00015342,2]
[319289983,1710640243964,-500.0,0.00015342,2]
[319289984,1710640243973,-525.89454892,0.00015342,2]
[319289985,1710640243982,-500.0,0.00015342,2]
[319289986,1710640243991,-500.0,0.00015342,2]
[319289987,1710640244000,-507.58059286,0.00015342,2]
[319289988,1710640244010,-201.086321,0.00015342,2]
[319289989,1710640244019,-150.96906865,0.0001535,2]
[319289990,1710640244028,-273.44526484,0.0001535,2]
[319289991,1710640244038,-150.96906865,0.00015358,2]
[319289992,1710640244047,-150.96906865,0.00015367,2]
[319289993,1710640244056,-150.96906865,0.00015375,2]
[319289994,1710640244065,-273.44526484,0.00015375,2]
[319289995,1710640244074,-500.0,0.00015378,2]
[319289996,1710640244083,-2919.49,0.00015378,2]
[319289997,1710640244093,-585.84138511,0.00015379,2]
[319289998,1710640244102,-538.04892914,0.00015379,2]
[319289999,1710640244111,-500.0,0.00015379,2]
[319290000,1710640244120,-500.0,0.00015379,2]
[319290001,1710640244130,-640.22,0.00015379,2]
[319290002,1710640244141,-500.0,0.00015379,2]
[319290003,1710640244150,-500.0,0.00015379,2]
[319290004,1710640244160,-618.71059465,0.00015379,2]
[319290005,1710640244169,-500.0,0.00015379,2]
[319290006,1710640244178,-500.0,0.00015379,2]
[319290007,1710640244187,-627.63,0.00015379,2]
[319290008,1710640244195,-500.0,0.00015379,2]
[319290009,1710640244204,-423.33137435,0.00015379,2]
[319290010,1710640244214,-523.19563457,0.00015379,2]
[319290011,1710640244223,-500.0,0.00015379,2]
[319290012,1710640244232,-500.0,0.00015379,2]
[319290013,1710640244241,-533.98629347,0.00015379,2]
[319290014,1710640244250,-593.41518736,0.00015379,2]
[319290015,1710640244258,-500.0,0.00015379,2]
[319290016,1710640244270,-500.0,0.00015379,2]
[319290017,1710640244278,-500.0,0.00015379,2]
[319290018,1710640244287,-500.0,0.00015379,2]
[319290019,1710640244296,-500.0,0.00015379,2]
[319290020,1710640244306,-500.0,0.00015379,2]
[319290021,1710640244315,-500.0,0.00015379,2]
[319290022,1710640244323,-500.0,0.00015379,2]
[319290023,1710640244332,-500.0,0.00015379,2]
[319290024,1710640244341,-500.0,0.00015379,2]
[319290025,1710640244350,-637.78,0.00015379,2]
[319290026,1710640244359,-500.0,0.00015379,2]
[319290027,1710640244368,-500.0,0.00015379,2]
[319290028,1710640244376,-500.0,0.00015379,2]
[319290029,1710640244386,-500.0,0.00015379,2]
[319290030,1710640244395,-403.63269923,0.00015379,2]
[319290031,1710640244404,-13424.48098547,0.0001538,2]
[319290032,1710640244414,-16605.43408155,0.0001538,2]
[319290033,1710640244423,-172.07342978,0.0001538,2]
[319290034,1710640244432,-16605.43408152,0.00015382,2]
[319290035,1710640244442,-500.0,0.00015382,2]
[319290036,1710640244451,-714.14,0.00015382,2]
[319290037,1710640244459,-2543.17,0.00015382,2]
[319290038,1710640244469,-1292.37,0.00015382,2]
[319290039,1710640244477,-678.89,0.00015382,2]
[319290040,1710640244486,-500.0,0.00015382,2]
[319290041,1710640244495,-504.07,0.00015382,2]
[319290042,1710640244504,-278.29633335,0.00015382,2]
[319290043,1710640244514,-540.71156877,0.00015382,2]
[319290044,1710640244523,-342.72988927,0.00015382,2]
[319290045,1710640244532,-500.0,0.00015382,2]
[319290046,1710640244540,-500.0,0.00015382,2]
[319290047,1710640244550,-500.0,0.00015382,2]
[319290048,1710640244559,-500.0,0.00015382,2]
[319290049,1710640244568,-500.0,0.00015382,2]
[319290050,1710640244577,-500.0,0.00015382,2]
[319290051,1710640244586,-500.0,0.00015382,2]
[319290052,1710640244595,-1733.44,0.00015382,2]
[319290053,1710640244604,-1022.16,0.00015382,2]
[319290054,1710640244613,-524.02,0.00015382,2]
[319290055,1710640244622,-500.0,0.00015382,2]
[319290056,1710640244631,-591.67,0.00015382,2]
[319290057,1710640244640,-150.96906865,0.00015383,2]
[319290058,1710640244649,-16605.43408152,0.00015384,2]
[319290059,1710640244658,-500.0,0.00015385,2]
[319290060,1710640244669,-671.3,0.00015385,2]
[319290061,1710640244679,-2421.75,0.00015385,2]
[319290062,1710640244688,-500.0,0.00015385,2]
[319290063,1710640244696,-1657.76,0.00015385,2]
[319290064,1710640244705,-1357.51,0.00015385,2]
[319290065,1710640244714,-500.0,0.00015385,2]
[319290066,1710640244723,-500.0,0.00015385,2]
[319290067,1710640244732,-500.0,0.00015385,2]
[319290068,1710640244741,-15084.7038124,0.00015385,2]
[319290069,1710640245030,-1520.73026912,0.00015385,2]
[319290070,1710640245039,-1773.76973088,0.00015387,2]
[319290071,1710640245055,-759.43780553,0.00015387,2]
[319290072,1710640245066,-378.25609224,0.00015387,2]
[319290073,1710640245077,-1054.38584747,0.00015387,2]
[319290074,1710640245102,-611.81021085,0.00015342,2]
[319290075,1710640245111,-6605.59905865,0.00015387,2]
[319290076,1710640245122,-1526.0935305,0.00015387,2]
[319290077,1710640245134,-570.09,0.00015387,2]
[319290079,1710640245518,-500.0,0.00015342,2]
[319290080,1710640245528,-373.03,0.00015342,2]
[319290081,1710640245537,-445.89,0.00015342,2]
[319290082,1710640245548,-75.82411255,0.00015342,2]
[319290083,1710640245557,-3937.80201625,0.00015387,2]
[319290084,1710640245567,-7942.26430163,0.00015389,2]
[319290085,1710640245590,-8663.16977989,0.00015389,2]
[319290086,1710640245599,-271.0,0.0001539,2]
[319290087,1710640245609,-16605.43408152,0.00015391,2]
[319290088,1710640245618,-150.96906865,0.00015392,2]
[319290089,1710640245627,-16605.43408152,0.00015393,2]
[319290090,1710640245636,-16605.43408152,0.00015395,2]
[319290092,1710640245646,-581.21357563,0.00015396,2]
[319290094,1710640245656,-941.84,0.00015396,2]
[319290096,1710640245666,-500.0,0.00015396,2]
[319290097,1710640245676,-16605.43408152,0.00015396,2]
[319290098,1710640245685,-156.51132444,0.00015398,2]
[319290099,1710640245695,-281.65525252,0.00015398,2]
[319290100,1710640245704,-666.13871095,0.00015398,2]
[319290101,1710640245713,-184.12689899,0.00015398,2]
[319290102,1710640245722,-404.21026152,0.00015398,2]
[319290103,1710640245731,-155.14319652,0.00015398,2]
[319290104,1710640245740,-1317.11031731,0.00015398,2]
[319290105,1710640245749,-1061.22011843,0.00015398,2]
[319290106,1710640245759,-500.0,0.00015398,2]
[319290107,1710640245768,-16605.43408152,0.00015398,2]
[319290108,1710640245778,-1353.30237949,0.00015399,2]
[319290109,1710640245787,-155.32218103,0.00015399,2]
[319290110,1710640245797,-1356.48336365,0.00015399,2]
[319290111,1710640245806,-324.73922996,0.00015399,2]
[319290112,1710640245815,-273.44526484,0.000154,2]
[319290113,1710640245825,-16605.43408152,0.000154,2]
[319290114,1710640245839,-539.91480503,0.000154,2]
[319290115,1710640245848,-182.46560572,0.000154,2]
[319290116,1710640245857,-1330.17739867,0.000154,2]
[319290117,1710640245867,-169.10179793,0.000154,2]
[319290118,1710640245878,-150.96906865,0.000154,2]
[319290119,1710640245888,-722.1204,0.00015403,2]
[319290120,1710640245897,-500.0,0.00015403,2]
[319290121,1710640245907,-503.1167,0.00015403,2]
[319290122,1710640245917,-2567.529,0.00015431,2]
[319290123,1710640245926,-1381.914,0.00015431,2]
[319290124,1710640245936,-962.235,0.00015431,2]
[319290125,1710640245945,-1227.0,0.00015431,2]
[319290126,1710640245955,-536.0,0.00015431,2]
[319290127,1710640245964,-457.0,0.00015431,2]
[319290128,1710640245973,-1264.0,0.00015431,2]
[319290129,1710640245983,-432.0,0.00015431,2]
[319290130,1710640245992,-358.207,0.00015431,2]
[319290131,1710640246001,-414.848,0.00015431,2]
[319290132,1710640246010,-1688.202,0.00015431,2]
[319290133,1710640246020,-150.0,0.00015431,2]
[319290134,1710640246029,-150.0,0.00015431,2]
[319290135,1710640246038,-152.622238,0.00015431,2]
[319290136,1710640246048,-165.290633,0.00015431,2]
[319290137,1710640246058,-214.12142,0.00015431,2]
[319290138,1710640246067,-307.247864,0.00015431,2]
[319290139,1710640246076,-205.892382,0.00015431,2]
[319290140,1710640246086,-2919.49,0.00015431,2]
[319290141,1710640246095,-3389.68216028,0.00015446,2]
[319290142,1710640246104,-2249.98001698,0.00015446,2]
[319290143,1710640246113,-578.13038067,0.00015446,2]
[319290144,1710640246122,-500.0,0.00015475,2]
[319290145,1710640246131,-610.76919771,0.00015475,2]
[319290146,1710640246141,-500.0,0.00015475,2]
[319290147,1710640246150,-542.19683642,0.00015475,2]
[319290148,1710640246159,-500.0,0.00015475,2]
[319290149,1710640246169,-500.0,0.00015475,2]
[319290150,1710640246178,-627.63,0.00015475,2]
[319290151,1710640246187,-500.0,0.00015475,2]
[319290152,1710640246196,-500.0,0.00015475,2]
[319290153,1710640246206,-500.0,0.00015475,2]
[319290154,1710640246215,-528.33500212,0.00015475,2]
[319290155,1710640246225,-500.0,0.00015475,2]
[319290156,1710640246234,-500.0,0.00015475,2]
[319290157,1710640246243,-500.0,0.00015475,2]
[319290158,1710640246253,-500.0,0.00015475,2]
[319290159,1710640246261,-500.0,0.00015475,2]
[319290160,1710640246271,-500.0,0.00015475,2]
[319290161,1710640246281,-500.0,0.00015475,2]
[319290162,1710640246290,-500.0,0.00015475,2]
[319290163,1710640246299,-204.97206416,0.00015475,2]
[319290164,1710640246308,-637.78,0.00015475,2]
[319290165,1710640246317,-500.0,0.00015475,2]
[319290166,1710640246327,-518.63292429,0.00015475,2]
[319290167,1710640246337,-500.0,0.00015475,2]
[319290168,1710640246346,-500.0,0.00015475,2]
[319290169,1710640246355,-500.0,0.00015476,2]
[319290170,1710640246365,-155.98645886,0.00015476,2]
[319290171,1710640246374,-500.0,0.00015476,2]
[319290172,1710640246384,-500.0,0.00015476,2]
[319290173,1710640246393,-1885.18735537,0.00015476,2]
[319290174,1710640246403,-627.63,0.00015476,2]
[319290176,1710640246414,-500.0,0.00015476,2]
[319290178,1710640246423,-500.0,0.00015476,2]
[319290179,1710640246433,-500.0,0.00015476,2]
[319290180,1710640246442,-714.14,0.00015476,2]
[319290181,1710640246450,-1292.37,0.00015476,2]
[319290182,1710640246459,-500.0,0.00015476,2]
[319290183,1710640246468,-678.89,0.00015476,2]
[319290184,1710640246478,-500.0,0.00015476,2]
[319290185,1710640246487,-579.72122197,0.00015476,2]
[319290186,1710640246496,-504.07,0.00015476,2]
[319290187,1710640246505,-500.0,0.00015476,2]
[319290188,1710640246515,-500.0,0.00015476,2]
[319290189,1710640246524,-500.0,0.00015476,2]
[319290190,1710640246534,-500.0,0.00015476,2]
[319290191,1710640246543,-941.84,0.00015476,2]
[319290192,1710640246553,-500.0,0.00015476,2]
[319290193,1710640246563,-500.0,0.00015476,2]
[319290194,1710640246572,-500.0,0.00015476,2]
[319290195,1710640246581,-500.0,0.00015476,2]
[319290196,1710640246591,-500.0,0.00015476,2]
[319290197,1710640246601,-500.0,0.00015476,2]
[319290198,1710640246610,-500.0,0.00015476,2]
[319290199,1710640246619,-306.43431373,0.00015476,2]
[319290200,1710640246629,-500.0,0.00015476,2]
[319290201,1710640246639,-637.78,0.00015476,2]
[319290202,1710640246650,-671.3,0.00015476,2]
[319290203,1710640246659,-500.0,0.00015476,2]
[319290204,1710640246670,-441.194942,0.00015476,2]
[319290205,1710640246679,-500.0,0.00015476,2]
[319290206,1710640246689,-500.0,0.00015476,2]
[319290207,1710640246699,-2421.75,0.00015476,2]
[319290208,1710640246709,-1733.44,0.00015476,2]
[319290209,1710640246718,-500.0,0.00015476,2]
[319290210,1710640246727,-1022.16,0.00015476,2]
[319290211,1710640246737,-524.02,0.00015476,2]
[319290212,1710640246746,-1657.76,0.00015476,2]
[319290213,1710640246756,-469.27731441,0.00015476,2]
[319290214,1710640246765,-500.0,0.00015476,2]
[319290215,1710640246775,-1357.51,0.00015476,2]
[319290216,1710640246784,-500.0,0.00015476,2]
[319290217,1710640246794,-500.0,0.00015476,2]
[319290218,1710640246804,-234.66,0.00015476,2]
[319290219,1710640246813,-591.67,0.00015476,2]
[319290220,1710640246823,-500.0,0.00015476,2]
[319290221,1710640246836,-517.0,0.00015477,2]
[319290222,1710640246846,-7458.5548801,0.00015477,2]
[319290223,1710640246855,-21621.9119629,0.00015477,2]
[319290224,1710640246865,-714.14,0.00015477,2]
[319290225,1710640246875,-1292.37,0.00015477,2]
[319290226,1710640246885,-1680.229001,0.00015477,2]
[319290227,1710640246894,-678.89,0.00015477,2]
[319290228,1710640246905,-500.0,0.00015477,2]
[319290229,1710640246917,-504.07,0.00015477,2]
[319290230,1710640246926,-329.40660933,0.00015477,2]
[319290231,1710640246936,-500.0,0.00015477,2]
[319290232,1710640246946,-500.0,0.00015477,2]
[319290233,1710640246962,-667.23274726,0.00015477,2]
[319290234,1710640247016,-500.0,0.00015477,2]
[319290235,1710640247027,-14271.6068286,0.00015477,2]
[319290236,1710640247037,-500.0,0.00015477,2]
[319290237,1710640247049,-500.0,0.00015477,2]
[319290238,1710640247060,-1733.44,0.00015477,2]
[319290239,1710640247070,-1022.16,0.00015477,2]
[319290240,1710640247080,-40126.8743085,0.00015477,2]
[319290241,1710640247092,-524.02,0.00015477,2]
[319290242,1710640247102,-500.0,0.00015477,2]
[319290243,1710640247113,-591.67,0.00015477,2]
[319290244,1710640247123,-117522.7261704,0.00015477,2]
[319290245,1710640247135,-158.49497281,0.00015478,2]
[319290246,1710640247145,-6510.55299316,0.00015478,2]
[319290247,1710640247156,-794.2643391,0.00015478,2]
[319290248,1710640247167,-785.05247535,0.00015478,2]
[319290249,1710640247178,-484.77604832,0.00015478,2]
[319290250,1710640247188,-294.75051208,0.00015478,2]
[319290251,1710640247198,-6213.51582172,0.00015478,2]
[319290252,1710640247208,-280.24759893,0.00015478,2]
[319290253,1710640247219,-341.04426478,0.00015478,2]
[319290254,1710640247229,-671.3,0.00015478,2]
[319290255,1710640247239,-2421.75,0.00015478,2]
[319290256,1710640247250,-500.0,0.00015478,2]
[319290257,1710640247261,-1657.76,0.00015478,2]
[319290258,1710640247271,-1357.51,0.00015478,2]
[319290259,1710640247281,-456.4,0.00015478,2]
[319290260,1710640247292,-500.0,0.00015478,2]
[319290261,1710640247303,-155.69533176,0.00015479,2]
[319290262,1710640247313,-201.37668312,0.00015479,2]
[319290263,1710640247323,-5002.53230386,0.00015479,2]
[319290264,1710640247334,-500.0,0.00015479,2]
[319290265,1710640247344,-500.0,0.00015479,2]
[319290266,1710640247354,-500.0,0.00015479,2]
[319290267,1710640247364,-500.0,0.00015479,2]
[319290268,1710640247375,-500.0,0.00015479,2]
[319290269,1710640247386,-500.0,0.00015479,2]
[319290270,1710640247396,-500.0,0.00015479,2]
[319290271,1710640247407,-500.0,0.00015479,2]
[319290272,1710640247419,-500.0,0.00015479,2]
[319290273,1710640247430,-500.0,0.00015479,2]
[319290274,1710640247440,-500.0,0.00015479,2]
[319290275,1710640247450,-500.0,0.00015479,2]
[319290276,1710640247461,-416.82635158,0.00015479,2]
[319290277,1710640247471,-627.63,0.00015479,2]
[319290278,1710640247482,-627.63,0.00015479,2]
[319290279,1710640247493,-627.63,0.00015479,2]
[319290280,1710640247504,-627.63,0.00015479,2]
[319290281,1710640247516,-627.63,0.00015479,2]
[319290282,1710640247526,-627.63,0.00015479,2]
[319290283,1710640247537,-246.61635718,0.00015479,2]
[319290284,1710640247548,-500.0,0.00015479,2]
[319290285,1710640247558,-500.0,0.00015479,2]
[319290286,1710640247569,-500.0,0.00015479,2]
[319290287,1710640247581,-500.0,0.00015479,2]
[319290288,1710640247591,-583.91085175,0.00015479,2]
[319290289,1710640247602,-540.4344425,0.00015479,2]
[319290290,1710640247613,-714.14,0.00015479,2]
[319290291,1710640247623,-714.14,0.00015479,2]
[319290292,1710640247634,-714.14,0.00015479,2]
[319290293,1710640247644,-714.14,0.00015479,2]
[319290294,1710640247655,-714.14,0.00015479,2]
[319290295,1710640247666,-1292.37,0.00015479,2]
[319290296,1710640247677,-1292.37,0.00015479,2]
[319290297,1710640247687,-1292.37,0.00015479,2]
[319290298,1710640247699,-264.97875571,0.00015479,2]
[319290299,1710640247709,-1292.37,0.00015479,2]
[319290300,1710640247720,-1292.37,0.00015479,2]
[319290301,1710640247731,-678.89,0.00015479,2]
[319290302,1710640247742,-678.89,0.00015479,2]
[319290303,1710640247752,-678.89,0.00015479,2]
[319290304,1710640247762,-678.89,0.00015479,2]
[319290305,1710640247772,-678.89,0.00015479,2]
[319290306,1710640247783,-500.0,0.00015479,2]
[319290307,1710640247793,-500.0,0.00015479,2]
[319290308,1710640247804,-500.0,0.00015479,2]
[319290309,1710640247814,-500.0,0.00015479,2]
[319290310,1710640247824,-500.0,0.00015479,2]
[319290311,1710640247837,-504.07,0.00015479,2]
[319290312,1710640247849,-504.07,0.00015479,2]
[319290313,1710640247860,-504.07,0.00015479,2]
[319290314,1710640247870,-504.07,0.00015479,2]
[319290315,1710640247882,-504.07,0.00015479,2]
[319290316,1710640247892,-500.0,0.00015479,2]
[319290317,1710640247902,-500.0,0.00015479,2]
[319290318,1710640247916,-500.0,0.00015479,2]
[319290319,1710640247927,-500.0,0.00015479,2]
[319290320,1710640247937,-500.0,0.00015479,2]
[319290321,1710640247947,-500.0,0.00015479,2]
[319290322,1710640247957,-500.0,0.00015479,2]
[319290323,1710640248174,-500.0,0.00015479,2]
[319290324,1710640248185,-500.0,0.00015479,2]
[319290325,1710640248194,-500.0,0.00015479,2]
[319290326,1710640248203,-500.0,0.00015479,2]
[319290327,1710640248213,-500.0,0.00015479,2]
[319290328,1710640248222,-500.0,0.00015479,2]
[319290329,1710640248231,-500.0,0.00015479,2]
[319290330,1710640248240,-367.96548138,0.00015479,2]
[319290331,1710640248250,-500.0,0.00015479,2]
[319290332,1710640248260,-256.13273885,0.00015479,2]
[319290333,1710640248271,-941.84,0.00015479,2]
[319290334,1710640248282,-500.0,0.00015479,2]
[319290335,1710640248292,-941.84,0.00015479,2]
[319290336,1710640248302,-500.0,0.00015479,2]
[319290337,1710640248312,-941.84,0.00015479,2]
[319290338,1710640248323,-643.38288849,0.00015479,2]
[319290339,1710640248334,-941.84,0.00015479,2]
[319290340,1710640248344,-941.84,0.00015479,2]
[319290341,1710640248354,-941.84,0.00015479,2]
[319290342,1710640248364,-500.0,0.00015479,2]
[319290343,1710640248374,-500.0,0.00015479,2]
[319290344,1710640248385,-500.0,0.00015479,2]
[319290345,1710640248396,-500.0,0.00015479,2]
[319290346,1710640248406,-500.0,0.00015479,2]
[319290347,1710640248416,-500.0,0.00015479,2]
[319290348,1710640248425,-500.0,0.00015479,2]
[319290349,1710640248436,-500.0,0.00015479,2]
[319290350,1710640248446,-500.0,0.00015479,2]
[319290351,1710640248456,-500.0,0.00015479,2]
[319290352,1710640248465,-500.0,0.00015479,2]
[319290353,1710640248475,-500.0,0.00015479,2]
[319290354,1710640248485,-500.0,0.00015479,2]
[319290355,1710640248495,-500.0,0.00015479,2]
[319290356,1710640248504,-500.0,0.00015479,2]
[319290357,1710640248514,-500.0,0.00015479,2]